fUSD/lending_fUSD_20240617
["ID","MTS","AMOUNT","RATE_DAILY","PERIOD"]
[329771448,1718659852092,-500.0,0.00021917,2]
[329771449,1718659852101,-500.0,0.00021917,2]
[329771450,1718659852111,-598.38,0.00021917,2]
[329771451,1718659852120,-500.0,0.00021917,2]
[329771452,1718659852129,-500.0,0.00021917,2]
[329771453,1718659852139,-500.0,0.00021917,2]
[329771454,1718659852147,-500.0,0.00021917,2]
[329771455,1718659852157,-500.0,0.00021917,2]
[329771456,1718659852166,-776.47,0.00021917,2]
[329771457,1718659852175,-500.0,0.00021917,2]
[329771458,1718659852185,-166.28514793,0.00021917,2]
[329771459,1718659852194,-500.0,0.00021917,2]
[329771460,1718659852203,-500.0,0.00021917,2]
[329771461,1718659852212,-706.57,0.00021917,2]
[329771462,1718659852222,-617.86,0.00021917,2]
[329771463,1718659852232,-1655.71,0.00021917,2]
[329771464,1718659852241,-1339.62,0.00021917,2]
[329771465,1718659852251,-500.0,0.00021917,2]
[329771466,1718659852260,-721.63,0.00021917,2]
[329771467,1718659852269,-500.0,0.00021917,2]
[329771468,1718659852278,-500.0,0.00021917,2]
[329771469,1718659852287,-510.74,0.00021917,2]
[329771470,1718659852296,-596.3,0.00021917,2]
[329771471,1718659852306,-500.0,0.00021917,2]
[329771472,1718659852315,-500.0,0.00021917,2]
[329771473,1718659852324,-500.0,0.00021917,2]
[329771474,1718659852333,-518.09,0.00021917,2]
[329771475,1718659852343,-500.0,0.00021917,2]
[329771476,1718659852352,-1038.56,0.00021917,2]
[329771477,1718659852362,-500.0,0.00021917,2]
[329771478,1718659852372,-559.69926886,0.00021917,2]
[329771479,1718659852381,-500.0,0.00021917,2]
[329771480,1718659852391,-500.0,0.00021917,2]
[329771481,1718659852400,-837.5,0.00021917,2]
[329771482,1718659852409,-500.0,0.00021917,2]
[329771483,1718659852418,-500.0,0.00021917,2]
[329771484,1718659852428,-500.0,0.00021917,2]
[329771485,1718659852438,-500.0,0.00021917,2]
[329771486,1718659852447,-500.0,0.00021917,2]
[329771487,1718659852456,-500.0,0.00021917,2]
[329771488,1718659852467,-500.0,0.00021917,2]
[329771489,1718659852476,-794.48,0.00021917,2]
[329771490,1718659852486,-797.61,0.00021917,2]
[329771491,1718659852496,-500.0,0.00021917,2]
[329771492,1718659852506,-500.0,0.00021917,2]
[329771493,1718659852516,-1495.56,0.00021917,2]
[329771494,1718659852525,-500.0,0.00021917,2]
[329771495,1718659852534,-829.1,0.00021917,2]
[329771496,1718659852543,-639.11,0.00021917,2]
[329771497,1718659852552,-500.0,0.00021917,2]
[329771498,1718659852566,-631.93,0.00021917,2]
[329771499,1718659852576,-526.38,0.00021917,2]
[329771500,1718659852586,-500.0,0.00021917,2]
[329771501,1718659852595,-500.0,0.00021917,2]
[329771502,1718659852606,-500.0,0.00021917,2]
[329771503,1718659852617,-500.0,0.00021917,2]
[329771504,1718659852626,-1216.14,0.00021917,2]
[329771505,1718659852636,-500.0,0.00021917,2]
[329771506,1718659852646,-675.33,0.00021917,2]
[329771507,1718659852657,-500.0,0.00021917,2]
[329771508,1718659852666,-500.0,0.00021917,2]
[329771509,1718659852676,-500.0,0.00021917,2]
[329771510,1718659852685,-899.28,0.00021917,2]
[329771511,1718659852694,-1211.55,0.00021917,2]
[329771512,1718659852703,-509.36,0.00021917,2]
[329771513,1718659852713,-558.22,0.00021917,2]
[329771514,1718659852722,-500.0,0.00021917,2]
[329771515,1718659852731,-835.63,0.00021917,2]
[329771516,1718659852740,-500.0,0.00021917,2]
[329771517,1718659852750,-899.66,0.00021917,2]
[329771518,1718659852759,-500.0,0.00021917,2]
[329771519,1718659852768,-722.01,0.00021917,2]
[329771520,1718659852778,-630.3,0.00021917,2]
[329771521,1718659852787,-635.56,0.00021917,2]
[329771522,1718659852796,-960.01,0.00021917,2]
[329771523,1718659852806,-500.0,0.00021917,2]
[329771524,1718659852816,-575.11607513,0.00021917,2]
[329771525,1718659852825,-1535.49,0.00021917,2]
[329771526,1718659852834,-500.0,0.00021917,2]
[329771527,1718659852844,-500.0,0.00021917,2]
[329771528,1718659852853,-728.42,0.00021917,2]
[329771529,1718659852862,-593.09,0.00021917,2]
[329771530,1718659852872,-500.0,0.00021917,2]
[329771531,1718659852882,-849.15,0.00021917,2]
[329771532,1718659852892,-412.92817311,0.00021917,2]
[329771533,1718659852902,-838.15,0.00021917,2]
[329771534,1718659852911,-500.0,0.00021917,2]
[329771535,1718659852921,-500.0,0.00021917,2]
[329771536,1718659852930,-500.0,0.00021917,2]
[329771537,1718659852939,-500.0,0.00021917,2]
[329771538,1718659852948,-500.0,0.00021917,2]
[329771539,1718659852958,-500.0,0.00021917,2]
[329771540,1718659852967,-500.0,0.00021917,2]
[329771541,1718659852976,-731.67,0.00021917,2]
[329771542,1718659852986,-1207.04,0.00021917,2]
[329771543,1718659852995,-454.72750549,0.00021917,2]
[329771544,1718659853004,-500.0,0.00021917,2]
[329771545,1718659853014,-500.0,0.00021917,2]
[329771546,1718659853023,-842.15,0.00021917,2]
[329771547,1718659853033,-500.0,0.00021917,2]
[329771548,1718659853042,-568.80290779,0.00021917,2]
[329771549,1718659853051,-1490.64,0.00021917,2]
[329771550,1718659853060,-500.0,0.00021917,2]
[329771551,1718659853070,-559.89,0.00021917,2]
[329771552,1718659853079,-557.87,0.00021917,2]
[329771553,1718659853088,-500.0,0.00021917,2]
[329771554,1718659853098,-500.0,0.00021917,2]
[329771555,1718659853107,-500.0,0.00021917,2]
[329771556,1718659853117,-500.0,0.00021917,2]
[329771557,1718659853126,-500.0,0.00021917,2]
[329771558,1718659853135,-806.01,0.00021917,2]
[329771559,1718659853145,-622.27,0.00021917,2]
[329771560,1718659853154,-500.0,0.00021917,2]
[329771561,1718659853163,-520.61,0.00021917,2]
[329771562,1718659853173,-500.0,0.00021917,2]
[329771563,1718659853183,-817.55,0.00021917,2]
[329771564,1718659853193,-580.98,0.00021917,2]
[329771565,1718659853203,-500.0,0.00021917,2]
[329771566,1718659853212,-500.0,0.00021917,2]
[329771567,1718659853222,-500.0,0.00021917,2]
[329771568,1718659853231,-1505.56,0.00021917,2]
[329771569,1718659853240,-500.0,0.00021917,2]
[329771570,1718659853250,-625.25,0.00021917,2]
[329771571,1718659853259,-1273.59,0.00021917,2]
[329771572,1718659853268,-500.0,0.00021917,2]
[329771573,1718659853277,-500.0,0.00021917,2]
[329771574,1718659853287,-500.0,0.00021917,2]
[329771575,1718659853296,-751.89,0.00021917,2]
[329771576,1718659853306,-500.0,0.00021917,2]
[329771577,1718659853314,-500.0,0.00021917,2]
[329771578,1718659853324,-500.0,0.00021917,2]
[329771579,1718659853333,-562.6,0.00021917,2]
[329771580,1718659853342,-500.0,0.00021917,2]
[329771581,1718659853352,-500.0,0.00021917,2]
[329771582,1718659853362,-940.0,0.00021917,2]
[329771583,1718659853372,-858.79,0.00021917,2]
[329771584,1718659853381,-607.3,0.00021917,2]
[329771585,1718659853390,-500.0,0.00021917,2]
[329771586,1718659853399,-500.0,0.00021917,2]
[329771587,1718659853409,-500.0,0.00021917,2]
[329771588,1718659853419,-555.64,0.00021917,2]
[329771589,1718659853428,-500.0,0.00021917,2]
[329771590,1718659853437,-500.0,0.00021917,2]
[329771591,1718659853446,-909.16,0.00021917,2]
[329771592,1718659853455,-500.0,0.00021917,2]
[329771593,1718659853466,-500.0,0.00021917,2]
[329771594,1718659853475,-500.0,0.00021917,2]
[329771595,1718659853484,-500.0,0.00021917,2]
[329771596,1718659853493,-500.0,0.00021917,2]
[329771597,1718659853503,-511.35,0.00021917,2]
[329771598,1718659853512,-500.0,0.00021917,2]
[329771599,1718659853521,-500.0,0.00021917,2]
[329771600,1718659853531,-521.59,0.00021917,2]
[329771601,1718659853541,-500.0,0.00021917,2]
[329771602,1718659853550,-644.6,0.00021917,2]
[329771603,1718659853560,-500.0,0.00021917,2]
[329771604,1718659853574,-500.0,0.00021917,2]
[329771605,1718659853584,-500.0,0.00021917,2]
[329771606,1718659853593,-938.6,0.00021917,2]
[329771607,1718659853602,-500.0,0.00021917,2]
[329771608,1718659853621,-1776.44,0.00021917,2]
[329771609,1718659853631,-500.0,0.00021917,2]
[329771610,1718659853640,-500.0,0.00021917,2]
[329771611,1718659853651,-564.08,0.00021917,2]
[329771612,1718659853660,-1327.33,0.00021917,2]
[329771613,1718659853670,-508.36,0.00021917,2]
[329771614,1718659853679,-500.0,0.00021917,2]
[329771615,1718659853689,-500.0,0.00021917,2]
[329771616,1718659853698,-500.0,0.00021917,2]
[329771617,1718659853708,-500.0,0.00021917,2]
[329771618,1718659853718,-500.0,0.00021917,2]
[329771619,1718659853727,-935.93,0.00021917,2]
[329771620,1718659853736,-1182.23,0.00021917,2]
[329771621,1718659853746,-500.0,0.00021917,2]
[329771622,1718659853755,-500.0,0.00021917,2]
[329771623,1718659853764,-1176.87,0.00021917,2]
[329771624,1718659853773,-500.0,0.00021917,2]
[329771625,1718659853783,-500.0,0.00021917,2]
[329771626,1718659853792,-500.0,0.00021917,2]
[329771627,1718659853801,-1862.89,0.00021917,2]
[329771628,1718659853811,-1496.28,0.00021917,2]
[329771629,1718659853820,-1446.6,0.00021917,2]
[329771630,1718659853830,-500.0,0.00021917,2]
[329771631,1718659853839,-500.0,0.00021917,2]
[329771632,1718659853848,-687.93,0.00021917,2]
[329771633,1718659853858,-500.0,0.00021917,2]
[329771634,1718659853870,-500.0,0.00021917,2]
[329771635,1718659853879,-500.0,0.00021917,2]
[329771636,1718659853888,-500.0,0.00021917,2]
[329771637,1718659853897,-905.35,0.00021917,2]
[329771638,1718659853906,-500.0,0.00021917,2]
[329771639,1718659853916,-753.05,0.00021917,2]
[329771640,1718659853925,-500.0,0.00021917,2]
[329771641,1718659853934,-500.0,0.00021917,2]
[329771642,1718659853943,-500.0,0.00021917,2]
[329771643,1718659853953,-500.0,0.00021917,2]
[329771644,1718659853962,-500.0,0.00021917,2]
[329771645,1718659853972,-339.05,0.00021917,2]
[329771646,1718659853981,-500.0,0.00021917,2]
[329771647,1718659853991,-1338.37,0.00021917,2]
[329771648,1718659854000,-543.82,0.00021917,2]
[329771649,1718659854010,-500.0,0.00021917,2]
[329771650,1718659854020,-1539.59,0.00021917,2]
[329771651,1718659854030,-500.0,0.00021917,2]
[329771652,1718659854041,-526.41,0.00021917,2]
[329771653,1718659854050,-500.0,0.00021917,2]
[329771654,1718659854060,-1130.75,0.00021917,2]
[329771655,1718659854069,-1010.28,0.00021917,2]
[329771656,1718659854079,-707.27,0.00021917,2]
[329771657,1718659854089,-500.0,0.00021917,2]
[329771658,1718659854098,-500.0,0.00021917,2]
[329771659,1718659854108,-500.0,0.00021917,2]
[329771660,1718659854119,-500.0,0.00021917,2]
[329771661,1718659854129,-671.09,0.00021917,2]
[329771662,1718659854139,-715.35,0.00021917,2]
[329771663,1718659854149,-500.0,0.00021917,2]
[329771664,1718659854159,-500.0,0.00021917,2]
[329771665,1718659854168,-1584.56,0.00021917,2]
[329771666,1718659854178,-889.13,0.00021917,2]
[329771667,1718659854188,-230.75274252,0.00021917,2]
[329771668,1718659854198,-500.0,0.00021917,2]
[329771669,1718659854207,-500.0,0.00021917,2]
[329771670,1718659854217,-1173.09,0.00021917,2]
[329771671,1718659854228,-726.31,0.00021917,2]
[329771672,1718659854237,-529.24,0.00021917,2]
[329771673,1718659854247,-500.0,0.00021917,2]
[329771674,1718659854257,-500.0,0.00021917,2]
[329771675,1718659854267,-500.0,0.00021917,2]
[329771676,1718659854277,-812.53,0.00021917,2]
[329771677,1718659854288,-500.0,0.00021917,2]
[329771678,1718659854297,-519.9,0.00021917,2]
[329771679,1718659854307,-1800.18,0.00021917,2]
[329771680,1718659854317,-1845.61,0.00021917,2]
[329771681,1718659854327,-500.0,0.00021917,2]
[329771682,1718659854337,-493.98410404,0.00021917,2]
[329771683,1718659854347,-500.0,0.00021917,2]
[329771684,1718659854357,-885.21,0.00021917,2]
[329771685,1718659854369,-1110.29,0.00021917,2]
[329771686,1718659854379,-563.75,0.00021917,2]
[329771687,1718659854388,-500.0,0.00021917,2]
[329771688,1718659854399,-2577.51,0.00021917,2]
[329771689,1718659854408,-542.93,0.00021917,2]
[329771690,1718659854418,-500.0,0.00021917,2]
[329771691,1718659854428,-500.0,0.00021917,2]
[329771692,1718659854437,-500.0,0.00021917,2]
[329771693,1718659854447,-1151.82,0.00021917,2]
[329771694,1718659854458,-500.0,0.00021917,2]
[329771695,1718659854468,-500.0,0.00021917,2]
[329771696,1718659854478,-2475.78,0.00021917,2]
[329771697,1718659854488,-891.4,0.00021917,2]
[329771698,1718659854497,-500.0,0.00021917,2]
[329771699,1718659854508,-500.0,0.00021917,2]
[329771700,1718659854518,-943.28,0.00021917,2]
[329771701,1718659854527,-561.11,0.00021917,2]
[329771702,1718659854537,-500.0,0.00021917,2]
[329771703,1718659854547,-500.0,0.00021917,2]
[329771704,1718659854558,-5445.19,0.00021917,2]
[329771705,1718659854572,-795.8,0.00021917,2]
[329771706,1718659854582,-500.0,0.00021917,2]
[329771707,1718659854592,-500.0,0.00021917,2]
[329771708,1718659854601,-5063.07,0.00021917,2]
[329771709,1718659854614,-736.05,0.00021917,2]
[329771710,1718659854623,-1051.04,0.00021917,2]
[329771711,1718659854633,-500.0,0.00021917,2]
[329771712,1718659854643,-612.82,0.00021917,2]
[329771713,1718659854655,-938.6,0.00021917,2]
[329771714,1718659854665,-500.0,0.00021917,2]
[329771715,1718659854675,-500.0,0.00021917,2]
[329771716,1718659854685,-732.74,0.00021917,2]
[329771717,1718659854695,-500.0,0.00021917,2]
[329771718,1718659854704,-13105.05,0.00021917,2]
[329771719,1718659854714,-663.57,0.00021917,2]
[329771720,1718659854723,-1884.39,0.00021917,2]
[329771721,1718659854733,-24796.58,0.00021917,2]
[329771722,1718659854743,-946.37,0.00021917,2]
[329771723,1718659854753,-500.0,0.00021917,2]
[329771724,1718659854763,-1395.53,0.00021917,2]
[329771725,1718659854772,-580.22056996,0.00021917,2]
[329771726,1718659854782,-861.72,0.00021917,2]
[329771727,1718659854791,-45848.89,0.00021917,2]
[329771728,1718659854801,-582.63,0.00021917,2]
[329771729,1718659854811,-500.0,0.00021917,2]
[329771730,1718659854821,-625.34,0.00021917,2]
[329771731,1718659854830,-534.11815708,0.00021917,2]
[329771732,1718659854840,-40734.25,0.00021917,2]
[329771733,1718659854850,-3641.97,0.00021917,2]
[329771734,1718659854859,-500.0,0.00021917,2]
[329771735,1718659854871,-500.0,0.00021917,2]
[329771736,1718659854881,-500.0,0.00021917,2]
[329771737,1718659854890,-500.0,0.00021917,2]
[329771738,1718659854900,-500.0,0.00021917,2]
[329771739,1718659854910,-1346.26,0.00021917,2]
[329771740,1718659854919,-500.0,0.00021917,2]
[329771741,1718659854929,-919.56,0.00021917,2]
[329771742,1718659854939,-500.0,0.00021917,2]
[329771743,1718659854948,-611.32,0.00021917,2]
[329771744,1718659854958,-1929.83,0.00021917,2]
[329771745,1718659854967,-1029.45,0.00021917,2]
[329771746,1718659854977,-1612.11,0.00021917,2]
[329771747,1718659854986,-479.50490842,0.00021917,2]
[329771748,1718659854996,-1795.42,0.00021917,2]
[329771749,1718659855007,-1689.75,0.00021917,2]
[329771750,1718659855016,-500.0,0.00021917,2]
[329771751,1718659855026,-1760.28,0.00021917,2]
[329771752,1718659855036,-3986.14,0.00021917,2]
[329771753,1718659855046,-500.0,0.00021917,2]
[329771754,1718659855056,-500.0,0.00021917,2]
[329771755,1718659855066,-3413.63,0.00021917,2]
[329771756,1718659855075,-500.0,0.00021917,2]
[329771757,1718659855085,-500.0,0.00021917,2]
[329771758,1718659855095,-1162.75,0.00021917,2]
[329771759,1718659855104,-2366.68,0.00021917,2]
[329771760,1718659855115,-962.27,0.00021917,2]
[329771761,1718659855124,-4743.74,0.00021917,2]
[329771762,1718659855134,-504.04,0.00021917,2]
[329771763,1718659855144,-766.87,0.00021917,2]
[329771764,1718659855153,-500.0,0.00021917,2]
[329771765,1718659855163,-500.0,0.00021917,2]
[329771766,1718659855172,-2923.2,0.00021917,2]
[329771767,1718659855183,-44064.04,0.00021917,2]
[329771768,1718659855192,-3031.07,0.00021917,2]
[329771769,1718659855202,-1907.06,0.00021917,2]
[329771770,1718659855211,-511.54,0.00021917,2]
[329771771,1718659855221,-510.13,0.00021917,2]
[329771772,1718659855230,-1384.51,0.00021917,2]
[329771773,1718659855240,-877.85,0.00021917,2]
[329771774,1718659855250,-500.0,0.00021917,2]
[329771775,1718659855260,-500.0,0.00021917,2]
[329771776,1718659855269,-524.32891019,0.00021917,2]
[329771777,1718659855279,-2670.23,0.00021917,2]
[329771778,1718659855288,-624.56,0.00021917,2]
[329771779,1718659855298,-1860.02,0.00021917,2]
[329771780,1718659855307,-927.48,0.00021917,2]
[329771781,1718659855317,-500.0,0.00021917,2]
[329771782,1718659855327,-500.0,0.00021917,2]
[329771783,1718659855336,-600.25,0.00021917,2]
[329771784,1718659855346,-5402.63,0.00021917,2]
[329771785,1718659855356,-2592.2,0.00021917,2]
[329771786,1718659855366,-609.48,0.00021917,2]
[329771787,1718659855375,-500.0,0.00021917,2]
[329771788,1718659855385,-943.5,0.00021917,2]
[329771789,1718659855394,-6003.43,0.00021917,2]
[329771790,1718659855404,-1656.4,0.00021917,2]
[329771791,1718659855414,-500.0,0.00021917,2]
[329771792,1718659855424,-714.58,0.00021917,2]
[329771793,1718659855433,-1088.34,0.00021917,2]
[329771794,1718659855444,-500.0,0.00021917,2]
[329771795,1718659855454,-9024.98,0.00021917,2]
[329771796,1718659855463,-3234.9,0.00021917,2]
[329771797,1718659855474,-3840.82,0.00021917,2]
[329771798,1718659855483,-1151.77,0.00021917,2]
[329771799,1718659855494,-563.42,0.00021917,2]
[329771800,1718659855504,-2372.34,0.00021917,2]
[329771801,1718659855515,-4734.28,0.00021917,2]
[329771802,1718659855524,-12675.1,0.00021917,2]
[329771803,1718659855534,-414.51093926,0.00021917,2]
[329771804,1718659855544,-751.27,0.00021917,2]
[329771805,1718659855554,-500.0,0.00021917,2]
[329771806,1718659855568,-353.73515305,0.00021917,2]
[329771807,1718659855579,-500.0,0.00021917,2]
[329771808,1718659855589,-961.69,0.00021917,2]
[329771809,1718659855599,-500.0,0.00021917,2]
[329771810,1718659855611,-653.0,0.00021917,2]
[329771811,1718659855622,-1757.46,0.00021917,2]
[329771812,1718659855632,-3815.97,0.00021917,2]
[329771813,1718659855642,-512.33,0.00021917,2]
[329771814,1718659855654,-514.44,0.00021917,2]
[329771815,1718659855665,-500.0,0.00021917,2]
[329771816,1718659855675,-867.11,0.00021917,2]
[329771817,1718659855685,-500.0,0.00021917,2]
[329771818,1718659855695,-808.16,0.00021917,2]
[329771819,1718659855704,-500.0,0.00021917,2]
[329771820,1718659855715,-7239.13,0.00021917,2]
[329771821,1718659855724,-3862.01,0.00021917,2]
[329771822,1718659855734,-2414.87,0.00021917,2]
[329771823,1718659855744,-654.39,0.00021917,2]
[329771824,1718659855754,-7813.63,0.00021917,2]
[329771825,1718659855764,-500.0,0.00021917,2]
[329771826,1718659855774,-4897.34,0.00021917,2]
[329771827,1718659855785,-7257.19,0.00021917,2]
[329771828,1718659855795,-867.67,0.00021917,2]
[329771829,1718659855804,-500.0,0.00021917,2]
[329771830,1718659855814,-1811.59,0.00021917,2]
[329771831,1718659855824,-918.09,0.00021917,2]
[329771832,1718659855835,-685.52,0.00021917,2]
[329771833,1718659855844,-500.0,0.00021917,2]
[329771834,1718659855854,-4039.07,0.00021917,2]
[329771835,1718659855865,-500.0,0.00021917,2]
[329771836,1718659855875,-4908.63,0.00021917,2]
[329771837,1718659855884,-886.49,0.00021917,2]
[329771838,1718659855894,-3878.53,0.00021917,2]
[329771839,1718659855904,-1399.11,0.00021917,2]
[329771840,1718659855914,-3526.27,0.00021917,2]
[329771841,1718659855923,-1724.57,0.00021917,2]
[329771842,1718659855933,-10586.16,0.00021917,2]
[329771843,1718659855943,-2051.42,0.00021917,2]
[329771844,1718659855953,-948.98,0.00021917,2]
[329771845,1718659855963,-500.0,0.00021917,2]
[329771846,1718659855972,-860.6,0.00021917,2]
[329771847,1718659855982,-544.54,0.00021917,2]
[329771848,1718659855992,-990.03,0.00021917,2]
[329771849,1718659856002,-782.5,0.00021917,2]
[329771850,1718659856012,-500.0,0.00021917,2]
[329771851,1718659856022,-4818.24,0.00021917,2]
[329771852,1718659856032,-666.87,0.00021917,2]
[329771853,1718659856042,-1013.86,0.00021917,2]
[329771854,1718659856052,-500.0,0.00021917,2]
[329771855,1718659856062,-14255.96,0.00021917,2]
[329771856,1718659856072,-4204.33,0.00021917,2]
[329771857,1718659856292,-500.0,0.00021917,2]
[329771858,1718659856302,-500.0,0.00021917,2]
[329771859,1718659856311,-2809.35,0.00021917,2]
[329771860,1718659856321,-500.0,0.00021917,2]
[329771861,1718659856332,-8488.95,0.00021917,2]
[329771862,1718659856341,-500.0,0.00021917,2]
[329771863,1718659856350,-516.03,0.00021917,2]
[329771864,1718659856360,-3972.26,0.00021917,2]
[329771865,1718659856372,-862.81,0.00021917,2]
[329771866,1718659856381,-859.26,0.00021917,2]
[329771867,1718659856391,-3317.44,0.00021917,2]
[329771868,1718659856401,-1639.81,0.00021917,2]
[329771869,1718659856410,-4487.66,0.00021917,2]
[329771870,1718659856420,-500.0,0.00021917,2]
[329771871,1718659856430,-19313.21,0.00021917,2]
[329771872,1718659856439,-1064.94,0.00021917,2]
[329771873,1718659856449,-1960.3,0.00021917,2]
[329771874,1718659856459,-1280.13,0.00021917,2]
[329771875,1718659856469,-500.0,0.00021917,2]
[329771876,1718659856479,-500.0,0.00021917,2]
[329771877,1718659856489,-2173.61,0.00021917,2]
[329771878,1718659856499,-1852.25,0.00021917,2]
[329771879,1718659856509,-901.0,0.00021917,2]
[329771880,1718659856518,-3318.61,0.00021917,2]
[329771881,1718659856528,-1928.14,0.00021917,2]
[329771882,1718659856538,-2351.64,0.00021917,2]
[329771883,1718659856548,-5477.08,0.00021917,2]
[329771884,1718659856558,-1454.77,0.00021917,2]
[329771885,1718659856573,-500.0,0.00021917,2]
[329771886,1718659856583,-500.0,0.00021917,2]
[329771887,1718659856592,-500.0,0.00021917,2]
[329771888,1718659856602,-784.13,0.00021917,2]
[329771889,1718659856619,-962.26,0.00021917,2]
[329771890,1718659856628,-1417.75,0.00021917,2]
[329771891,1718659856638,-744.96,0.00021917,2]
[329771892,1718659856649,-881.72,0.00021917,2]
[329771893,1718659856659,-500.0,0.00021917,2]
[329771894,1718659856668,-4177.43,0.00021917,2]
[329771895,1718659856678,-500.0,0.00021917,2]
[329771896,1718659856687,-2207.13,0.00021917,2]
[329771897,1718659856696,-1222.88,0.00021917,2]
[329771898,1718659856706,-500.0,0.00021917,2]
[329771899,1718659856715,-777.35,0.00021917,2]
[329771900,1718659856725,-500.0,0.00021917,2]
[329771901,1718659856737,-3307.85,0.00021917,2]
[329771902,1718659856747,-2532.42,0.00021917,2]
[329771903,1718659856756,-6782.82,0.00021917,2]
[329771904,1718659856765,-500.0,0.00021917,2]
[329771905,1718659856775,-500.0,0.00021917,2]
[329771906,1718659856784,-1291.64,0.00021917,2]
[329771907,1718659856794,-500.0,0.00021917,2]
[329771908,1718659856804,-500.0,0.00021917,2]
[329771909,1718659856813,-1855.2,0.00021917,2]
[329771910,1718659856823,-4879.58,0.00021917,2]
[329771911,1718659856832,-9243.14,0.00021917,2]
[329771912,1718659856842,-3726.86,0.00021917,2]
[329771913,1718659856852,-549.1,0.00021917,2]
[329771914,1718659856861,-500.0,0.00021917,2]
[329771915,1718659856872,-5126.78,0.00021917,2]
[329771916,1718659856881,-378.19447459,0.00021917,2]
[329771917,1718659856890,-2173.02,0.00021917,2]
[329771918,1718659856899,-975.62,0.00021917,2]
[329771919,1718659856909,-800.1,0.00021917,2]
[329771920,1718659856918,-1993.33,0.00021917,2]
[329771921,1718659856930,-500.0,0.00021917,2]
[329771922,1718659856940,-669.92,0.00021917,2]
[329771923,1718659856949,-500.0,0.00021917,2]
[329771924,1718659856958,-6536.15,0.00021917,2]
[329771925,1718659856968,-500.0,0.00021917,2]
[329771926,1718659856977,-500.0,0.00021917,2]
[329771927,1718659856987,-1330.07,0.00021917,2]
[329771928,1718659856996,-500.0,0.00021917,2]
[329771929,1718659857006,-521.99,0.00021917,2]
[329771930,1718659857016,-500.0,0.00021917,2]
[329771931,1718659857025,-500.0,0.00021917,2]
[329771932,1718659857034,-9395.68,0.00021917,2]
[329771933,1718659857043,-4782.18,0.00021917,2]
[329771934,1718659857052,-2242.43,0.00021917,2]
[329771935,1718659857061,-3782.97,0.00021917,2]
[329771936,1718659857071,-6715.49,0.00021917,2]
[329771937,1718659857080,-1990.64,0.00021917,2]
[329771938,1718659857089,-1892.52,0.00021917,2]
[329771939,1718659857098,-500.0,0.00021917,2]
[329771940,1718659857107,-629.17,0.00021917,2]
[329771941,1718659857116,-1077.39,0.00021917,2]
[329771942,1718659857126,-861.67,0.00021917,2]
[329771943,1718659857135,-2638.13,0.00021917,2]
[329771944,1718659857145,-713.04,0.00021917,2]
[329771945,1718659857154,-500.0,0.00021917,2]
[329771946,1718659857163,-11017.28,0.00021917,2]
[329771947,1718659857173,-500.0,0.00021917,2]